fUST/lending_fUST_20250328
["ID","MTS","AMOUNT","RATE_DAILY","PERIOD"]
[356752248,1743111033017,-219.80063982,0.000399,2]
[356752249,1743111033027,-622.2,0.00039931,2]
[356752250,1743111033036,-500.0,0.00039973,5]
[356752251,1743111033046,-500.0,0.00039973,5]
[356752252,1743111033055,-500.0,0.00039973,2]
[356752253,1743111033064,-500.0,0.00039973,5]
[356752254,1743111033073,-500.0,0.00039973,5]
[356752255,1743111033083,-597.78737736,0.00039973,2]
[356752256,1743111033093,-500.0,0.00039973,5]
[356752257,1743111033103,-500.0,0.00039973,5]
[356752258,1743111033113,-500.0,0.00039973,5]
[356752259,1743111033122,-500.0,0.00039973,5]
[356752260,1743111033131,-500.0,0.00039973,5]
[356752261,1743111033140,-501.17725434,0.00039973,2]
[356752262,1743111033149,-500.0,0.00039973,5]
[356752263,1743111033159,-500.0,0.00039973,5]
[356752264,1743111033168,-500.0,0.00039973,5]
[356752265,1743111033177,-500.0,0.00039973,5]
[356752266,1743111033187,-500.0,0.00039973,5]
[356752267,1743111033196,-500.0,0.00039973,5]
[356752268,1743111033205,-645.2214,0.00039986,2]
[356752269,1743111033214,-620.31363612,0.0003999,3]
[356752270,1743111033224,-298.88059172,0.00039998,2]
[356752271,1743111033233,-160.0,0.00039999,30]
[356752272,1743111033243,-593373.06834853,0.0004,120]
[356752273,1743111033266,-135895.69172694,0.0004,120]
[356752767,1743111046669,-196.4098005,0.0003859,15]
[356752768,1743111046679,-600.95678239,0.0003859,2]
[356752769,1743111046689,-489.03549556,0.0003859,15]
[356752770,1743111046699,-443.565515,0.0003859,15]
[356752771,1743111046709,-510.02339372,0.000398,2]
[356752772,1743111046718,-510.02339368,0.00039825,2]
[356752773,1743111046728,-510.02339368,0.0003985,2]
[356752774,1743111046737,-510.02339368,0.00039875,2]
[356752775,1743111046746,-510.02339368,0.000399,2]
[356752776,1743111046756,-298.88059172,0.00039998,2]
[356752777,1743111046765,-4921.03484639,0.0004,120]
[356752779,1743111676637,-234.0697124,0.0002925,5]
[356752780,1743111687007,-163.52865105,0.0002925,5]
[356752781,1743111722628,-102.40163655,0.0002925,5]
[356752782,1743111722654,-136.94618126,0.000369,13]
[356752783,1743111727265,-82.06251497,0.000369,13]
[356752784,1743111727290,-219.00869619,0.000393,15]
[356752785,1743111727312,-198.92878884,0.00039399,5]
[356752786,1743111730351,-172.87853869,0.0003589,2]
[356752787,1743111735116,-301.28280852,0.0003589,2]
[356752829,1743112231947,-25.83865279,0.0003589,2]
[356752830,1743112231961,-1486.279713,0.00036178,2]
[356752831,1743112231975,-219.00869619,0.000379,14]
[356752832,1743112231988,-2300.0,0.000394,2]
[356752833,1743112232001,-151.0,0.000395,14]
[356752834,1743112232016,-20646.83086129,0.000396,2]
[356752835,1743112232029,-151.0,0.000398,14]
[356752836,1743112232042,-150.0,0.0003982,2]
[356752837,1743112232055,-234.0697124,0.00039872,2]
[356752838,1743112232067,-500.0,0.00039872,31]
[356752839,1743112232081,-500.0,0.00039873,5]
[356752841,1743112232093,-500.0,0.00039873,5]
[356752843,1743112232105,-372.38227502,0.00039873,5]
[356752844,1743112232116,-500.0,0.00039873,5]
[356752845,1743112232127,-500.0,0.00039873,5]
[356752846,1743112232138,-240.5601574,0.00039876,2]
[356752847,1743112232152,-600.0,0.00039876,2]
[356752848,1743112232164,-150.0,0.0003989,2]
[356752849,1743112232177,-322000.0,0.000399,2]
[356752850,1743112232189,-502.37,0.000399,120]
[356752851,1743112232202,-622.2,0.00039931,2]
[356752852,1743112232215,-500.0,0.00039973,5]
[356752853,1743112232228,-500.0,0.00039973,5]
[356752854,1743112232238,-500.0,0.00039973,5]
[356752855,1743112232248,-500.0,0.00039973,5]
[356752856,1743112232258,-500.0,0.00039973,5]
[356752857,1743112232271,-500.0,0.00039973,5]
[356752858,1743112232285,-500.0,0.00039973,5]
[356752859,1743112232298,-500.0,0.00039973,5]
[356752860,1743112232308,-500.0,0.00039973,5]
[356752861,1743112232318,-500.0,0.00039973,5]
[356752862,1743112232331,-500.0,0.00039973,5]
[356752863,1743112232342,-500.96717233,0.00039973,5]
[356752864,1743112232353,-645.2214,0.00039986,2]
[356752865,1743112232364,-150.565823,0.0003999,2]
[356752866,1743112232376,-160.8206711,0.00039999,30]
[356752867,1743112232387,-393.8794512,0.00039999,31]
[356752868,1743112232401,-567.86910516,0.00039999,5]
[356752869,1743112232413,-84948.55689023,0.0004,5]
[356752870,1743112232423,-150.0,0.0004,20]
[356752871,1743112232435,-429646.53286347,0.0004,30]
[356752897,1743112237671,-45849.8347432,0.0004,30]
[356752916,1743112245745,-65178.57141788,0.0004,30]
[356752934,1743113432047,-500.0,0.0003589,2]
[356752935,1743113432058,-160.0,0.00037056,2]
[356752936,1743113432067,-400.0,0.00037152,2]
[356752937,1743113432077,-18810.0378161,0.00037153,2]
[356752938,1743113432086,-219.00869619,0.000379,14]
[356752939,1743113432095,-1000.0,0.000386,6]
[356752940,1743113432104,-250.0,0.0003951,2]
[356752941,1743113432113,-390.72004778,0.00039604,2]
[356752942,1743113432123,-1449.18582828,0.00039716,2]
[356752943,1743113432135,-500.0,0.00039743,31]
[356752944,1743113432144,-500.0,0.00039743,31]
[356752945,1743113432154,-500.0,0.00039743,2]
[356752946,1743113432165,-500.0,0.00039747,5]
[356752947,1743113432174,-500.0,0.00039773,5]
[356752948,1743113432183,-500.0,0.00039773,5]
[356752949,1743113432192,-500.0,0.00039773,5]
[356752950,1743113432201,-500.0,0.00039773,5]
[356752951,1743113432210,-500.0,0.00039773,5]
[356752952,1743113432219,-500.0,0.00039773,5]
[356752953,1743113432228,-257.30154777,0.00039773,5]
[356752954,1743113432237,-500.0,0.00039773,5]
[356752955,1743113432248,-151.0,0.00039776,2]
[356752956,1743113432259,-558.573624,0.00039776,2]
[356752957,1743113432268,-600.0,0.00039776,2]
[356752958,1743113432277,-5530.45168806,0.0003979,3]
[356752959,1743113432286,-322000.0,0.000398,2]
[356752960,1743113432296,-622.2,0.00039831,2]
[356752961,1743113432305,-257.88066276,0.00039873,2]
[356752962,1743113432314,-257.88066276,0.0003988,2]
[356752963,1743113432325,-645.2214,0.00039886,2]
[356752964,1743113432334,-257.88066276,0.00039887,2]
[356752965,1743113432343,-257.88066276,0.00039893,2]
[356752966,1743113432353,-257.88066276,0.000399,2]
[356752967,1743113432363,-730.67312544,0.00039941,2]
[356752968,1743113432372,-500.0,0.00039973,5]
[356752969,1743113432381,-501.51773574,0.00039973,5]
[356752970,1743113432391,-500.0,0.00039973,5]
[356752971,1743113432402,-500.0,0.00039973,5]
[356752972,1743113432411,-500.0,0.00039973,2]
[356752973,1743113432421,-500.0,0.00039973,5]
[356752974,1743113432429,-419.15013303,0.00039973,5]
[356752975,1743113432439,-500.0,0.00039973,5]
[356752976,1743113432447,-500.0,0.00039973,5]
[356752977,1743113432457,-398.36704588,0.00039973,5]
[356752978,1743113432466,-500.0,0.00039973,5]
[356752979,1743113432476,-500.0,0.00039973,5]
[356752980,1743113432485,-500.0,0.00039973,5]
[356752981,1743113432494,-482.96236837,0.00039973,5]
[356752982,1743113432503,-500.0,0.00039973,2]
[356752983,1743113432512,-500.0,0.00039973,5]
[356752984,1743113432521,-500.0,0.00039973,5]
[356752985,1743113432530,-500.0,0.00039973,5]
[356752986,1743113432539,-500.0,0.00039973,5]
[356752987,1743113432549,-500.0,0.00039973,5]
[356752988,1743113432558,-500.0,0.00039973,5]
[356752989,1743113432567,-500.0,0.00039973,5]
[356752990,1743113432577,-500.0,0.00039973,5]
[356752991,1743113432587,-921.74194801,0.0003998,3]
[356752992,1743113432599,-1653.96821221,0.00039987,48]
[356752993,1743113432609,-11982.6453241,0.0003999,3]
[356752994,1743113432619,-338.60090428,0.00039999,31]
[356752995,1743113432628,-502416.0107731,0.0004,60]
[356752996,1743113432640,-109892.45443985,0.0004,60]
[356753004,1743113440621,-350.8164,0.0004,60]
[356753012,1743113443020,-850.15991958,0.0004,60]
[356753013,1743113443093,-7509.60222495,0.0004,60]
[356753017,1743113445894,-41031.42642116,0.0004,60]
[356753018,1743113821993,-219.00869619,0.000379,14]
[356753019,1743113822021,-280.99130381,0.000396,120]
[356753020,1743113822973,-250.81089881,0.000396,120]
[356753021,1743113824669,-252.77930069,0.00039672,5]
[356753022,1743113843981,-211.24657045,0.0003589,2]
[356753024,1743114179066,-251.78957212,0.0003579,2]
[356753025,1743114187555,-243.25210992,0.0003579,2]
[356753026,1743114192729,-202.18618189,0.000379,14]
[356753027,1743114196176,202.18618189,0.00025,120]
[356753028,1743114221694,-211.24657045,0.000369,13]
[356753029,1743114242463,-4.60834197,0.000369,13]
[356753030,1743114242487,-197.57783992,0.00039673,5]
[356753031,1743114253126,-208.59593072,0.00039673,5]
[356753033,1743114366304,-199.5033,0.00039672,5]
[356753040,1743114521936,1291.018817,0.0002,120]
[356753051,1743114609174,-168.19779738,0.00025693,2]
[356753052,1743114614268,-208.07633784,0.000379,14]
[356753053,1743114624997,-150.39660977,0.00025693,2]
[356753067,1743114632143,-287.49867657,0.00025693,2]
[356753068,1743114632153,-288.75342955,0.0003589,2]
[356753069,1743114632163,-160.0,0.00036448,2]
[356753070,1743114632174,-1735.9306635,0.00036461,2]
[356753071,1743114632183,-5.4744036,0.000379,14]
[356753072,1743114632193,-2268.0,0.00038476,2]
[356753073,1743114632204,-1915.0,0.00038476,2]
[356753074,1743114632214,-165.0329373,0.00038799,4]
[356753075,1743114632223,-1098.70093976,0.00039474,15]
[356753076,1743114632234,-250.0,0.00039536,2]
[356753077,1743114632244,-181.31170913,0.000396,2]
[356753078,1743114632253,-267.0,0.00039672,5]
[356753079,1743114632263,-59.82346278,0.00039673,5]
[356753080,1743114632272,-491.78599485,0.00039673,5]
[356753081,1743114632281,-260.9802924,0.00039673,5]
[356753082,1743114632292,-500.0,0.00039673,5]
[356753083,1743114632301,-158.79732992,0.00039673,5]
[356753084,1743114632312,-500.0,0.00039673,5]
[356753085,1743114632321,-500.0,0.00039673,5]
[356753086,1743114632330,-502.8339842,0.00039673,5]
[356753087,1743114632346,-404.98767485,0.00039673,5]
[356753088,1743114632356,-528.7791108,0.00039673,5]
[356753089,1743114632365,-420.27593344,0.00039673,5]
[356753090,1743114632375,-420.15906292,0.00039673,5]
[356753091,1743114632386,-500.0,0.00039673,5]
[356753092,1743114632395,-500.0,0.00039673,5]
[356753093,1743114632405,-500.0,0.00039673,5]
[356753094,1743114632415,-500.0,0.00039673,5]
[356753095,1743114632426,-152.43175179,0.00039673,5]
[356753096,1743114632435,-394.88457551,0.00039673,5]
[356753097,1743114632444,-500.0,0.00039673,5]
[356753098,1743114632454,-500.0,0.00039673,5]
[356753099,1743114632464,-500.0,0.00039673,5]
[356753100,1743114632473,-500.0,0.00039673,5]
[356753101,1743114632482,-500.0,0.00039673,5]
[356753102,1743114632492,-10847.83680212,0.00039673,2]
[356753103,1743114632501,-322000.0,0.000397,2]
[356753104,1743114632511,-151.0,0.000399,17]
[356753105,1743114632520,-400.0,0.00039907,2]
[356753106,1743114632530,-541.0,0.00039907,2]
[356753107,1743114632539,-150.0,0.00039907,2]
[356753108,1743114632549,-264.65067899,0.00039973,5]
[356753109,1743114632558,-423.77866788,0.00039973,5]
[356753110,1743114632569,-511.25562868,0.00039973,5]
[356753111,1743114632578,-503.25457368,0.00039973,5]
[356753112,1743114632587,-303.08224536,0.00039973,5]
[356753113,1743114632597,-163.82526476,0.00039973,5]
[356753114,1743114632606,-500.0,0.00039973,5]
[356753115,1743114632616,-169.31861077,0.00039973,5]
[356753116,1743114632626,-500.0,0.00039973,5]
[356753117,1743114632635,-500.0,0.00039973,5]
[356753118,1743114632645,-500.0,0.00039973,5]
[356753119,1743114632654,-500.0,0.00039973,5]
[356753120,1743114632664,-452.63766718,0.00039973,5]
[356753121,1743114632674,-405.07508102,0.00039973,5]
[356753122,1743114632684,-500.0,0.00039973,5]
[356753123,1743114632864,-500.0,0.00039973,5]
[356753124,1743114632882,-500.0,0.00039973,5]
[356753125,1743114632892,-190.26327528,0.00039973,5]
[356753126,1743114632901,-267.55140226,0.00039973,5]
[356753127,1743114632911,-268.23575259,0.00039973,5]
[356753128,1743114632921,-500.0,0.00039973,5]
[356753129,1743114632931,-447.13832284,0.00039973,2]
[356753130,1743114632941,-500.0,0.00039973,5]
[356753131,1743114632952,-500.0,0.00039973,5]
[356753132,1743114632961,-500.0,0.00039973,5]
[356753133,1743114632971,-500.0,0.00039973,5]
[356753134,1743114632980,-500.0,0.00039973,5]
[356753135,1743114632989,-160.29955628,0.00039973,5]
[356753136,1743114632999,-500.0,0.00039973,5]
[356753137,1743114633008,-500.0,0.00039973,5]
[356753138,1743114633017,-500.0,0.00039973,5]
[356753139,1743114633027,-590.91584403,0.00039973,5]
[356753140,1743114633036,-500.0,0.00039973,5]
[356753141,1743114633046,-500.0,0.00039973,5]
[356753142,1743114633055,-166.0,0.0003999,14]
[356753143,1743114633065,-166.0,0.0003999,14]
[356753144,1743114633075,-209.18139872,0.0003999,14]
[356753145,1743114633084,-162.89753949,0.0003999,14]
[356753146,1743114633094,-355.0,0.0003999,14]
[356753147,1743114633103,-355.0,0.0003999,14]
[356753148,1743114633113,-355.0,0.0003999,14]
[356753149,1743114633122,-355.0,0.0003999,14]
[356753150,1743114633132,-317.0,0.0003999,14]
[356753151,1743114633142,-355.0,0.0003999,14]
[356753152,1743114633151,-317.0,0.0003999,14]
[356753153,1743114633161,-355.0,0.0003999,14]
[356753154,1743114633171,-317.0,0.0003999,14]
[356753155,1743114633181,-355.0,0.0003999,14]
[356753156,1743114633191,-317.0,0.0003999,14]
[356753157,1743114633200,-355.0,0.0003999,14]
[356753158,1743114633210,-317.0,0.0003999,14]
[356753159,1743114633220,-355.0,0.0003999,14]
[356753160,1743114633229,-317.0,0.0003999,14]
[356753161,1743114633239,-355.0,0.0003999,14]
[356753162,1743114633249,-317.0,0.0003999,14]
[356753163,1743114633259,-355.0,0.0003999,14]
[356753164,1743114633268,-317.0,0.0003999,14]
[356753165,1743114633278,-355.0,0.0003999,14]
[356753166,1743114633287,-317.0,0.0003999,14]
[356753167,1743114633297,-355.0,0.0003999,14]
[356753168,1743114633307,-317.0,0.0003999,14]
[356753169,1743114633317,-355.0,0.0003999,14]
[356753170,1743114633328,-317.0,0.0003999,14]
[356753171,1743114633341,-355.0,0.0003999,14]
[356753172,1743114633351,-317.0,0.0003999,14]
[356753173,1743114633362,-355.0,0.0003999,14]
[356753174,1743114633375,-317.0,0.0003999,14]
[356753175,1743114633387,-317.0,0.0003999,14]
[356753176,1743114633396,-426.9194485,0.0003999,14]
[356753177,1743114633406,-317.0,0.0003999,14]
[356753178,1743114633416,-317.0,0.0003999,14]
[356753179,1743114633426,-317.0,0.0003999,14]
[356753180,1743114633435,-317.0,0.0003999,14]
[356753181,1743114633444,-317.0,0.0003999,14]
[356753182,1743114633456,-317.0,0.0003999,14]
[356753183,1743114633468,-317.0,0.0003999,14]
[356753184,1743114633478,-317.0,0.0003999,14]
[356753185,1743114633487,-317.0,0.0003999,14]
[356753186,1743114633497,-160.0,0.00039999,30]
[356753187,1743114633507,-53457.58210304,0.0004,30]
[356753188,1743114633521,-250.0,0.0004,7]
[356753189,1743114633531,-907339.86266537,0.0004,30]
[356753190,1743114633541,-13163.0,0.0004,60]
[356753191,1743114633551,-1503674.55112749,0.0004,60]
[356753192,1743114633560,-258089.59048256,0.0004,90]
[356753193,1743114640519,-0.0065098,0.000396,2]
[356753195,1743114643317,-16549.3836304,0.000396,2]
[356753198,1743114704576,-168.19779738,0.00036361,120]
[356753199,1743114704600,-18.89573376,0.00037589,30]
[356753200,1743114730843,-151.0,0.0003589,2]
[356753201,1743114743194,-161.90646886,0.00024658,2]
[356753203,1743114946438,-300.0,0.00025199,7]
[356753207,1743115036066,-151.0,0.000359,12]
[356753208,1743115043541,-151.18618189,0.00034672,30]
[356753211,1743115352838,-219.00869619,0.00024658,2]
[356753212,1743115355428,-245.60229344,0.00025199,7]
[356753213,1743115360580,-170.02365279,0.00024658,2]
[356753214,1743115561997,-148.05318216,0.00024658,2]
[356753215,1743115562019,-46.76063595,0.00025199,7]
[356753217,1743115668412,-172.87853869,0.00025199,7]
[356753218,1743115673482,-301.28280852,0.00025199,7]
[356753219,1743115678494,-55.67994922,0.00025199,7]
[356753220,1743115678517,-122.34873514,0.00027787,5]
[356753221,1743115727462,-186.05633659,0.000329,10]
[356753223,1743115744299,-153.0,0.00024,2]
[356753224,1743115744323,-147.0,0.00025358,2]
[356753225,1743115772325,-161.9425379,0.000329,30]
[356753228,1743115790587,-7.0,0.00025358,2]
[356753229,1743115790610,-145.67,0.00027787,5]
[356753230,1743115795114,-153.08776342,0.00027787,5]
[356753231,1743115803583,-235.64141489,0.00027,2]
[356753232,1743115806434,-212.89607696,0.00030019,27]
[356753233,1743115809655,-500.0,0.00027,2]
[356753234,1743115823070,-19.25313906,0.00027,2]
[356753235,1743115823094,-78.89350144,0.00027787,5]
[356753236,1743115823116,-101.8533595,0.00029,2]
[356753237,1743115831269,-285.22649319,0.00029,2]
[356753243,1743115832475,-250.0,0.00029,2]
[356753244,1743115832487,-7233.84014731,0.00029,2]
[356753245,1743115832496,-500.0,0.0002925,5]
[356753246,1743115832506,-500.0,0.0002925,5]
[356753247,1743115832515,-1238.9,0.0002999,2]
[356753248,1743115832524,-1238.9,0.0002999,2]
[356753249,1743115832534,-19299.87633067,0.0003,2]
[356753250,1743115832544,-1238.9,0.00030009,2]
[356753251,1743115832553,-1238.9,0.00030009,2]
[356753252,1743115832562,-1238.9,0.00030009,2]
[356753253,1743115832571,-1238.9,0.00030009,2]
[356753254,1743115832580,-1238.9,0.00030009,2]
[356753255,1743115832589,-5674.17309226,0.00030019,27]
[356753256,1743115832598,-5000.0,0.00030019,22]
[356753257,1743115832607,-5000.0,0.00030019,24]
[356753258,1743115832616,-500.0,0.00030712,5]
[356753260,1743115832625,-1238.9,0.00032238,2]
[356753261,1743115832634,-500.0,0.00032248,5]
[356753262,1743115832644,-160.0,0.00032888,2]
[356753263,1743115832653,-1238.9,0.0003289,2]
[356753264,1743115832662,-1238.9,0.0003289,2]
[356753265,1743115832671,-400.0,0.00032895,2]
[356753266,1743115832681,-1875.722799,0.00032896,2]
[356753267,1743115832690,-200.0,0.000329,2]
[356753268,1743115832701,-19377.76676843,0.000329,10]
[356753269,1743115832710,-24.11379869,0.000329,30]
[356753270,1743115832719,-19563.82310487,0.00033486,11]
[356753271,1743115832729,-19563.82310487,0.00034072,11]
[356753272,1743115832738,-19563.82310487,0.00034659,12]
[356753273,1743115832748,-1000.0,0.00035003,7]
[356753274,1743115832757,-19563.82310487,0.00035245,12]
[356753275,1743115832766,-560.0,0.00035348,2]
[356753276,1743115832776,-217.46696141,0.000357,2]
[356753277,1743115832786,-217.46696141,0.00035826,2]
[356753278,1743115832795,-19563.82310487,0.00035831,12]
[356753279,1743115832804,-500.0,0.0003589,2]
[356753280,1743115832813,-834.95724862,0.00035891,2]
[356753281,1743115832822,-160.0,0.00035891,2]
[356753282,1743115832831,-200.0,0.000359,2]
[356753283,1743115832840,-479.10927471,0.00035972,2]
[356753284,1743115832849,-1327.21831644,0.00035982,2]
[356753285,1743115832858,-159.28,0.00035982,2]
[356753286,1743115832868,-446.738,0.00035992,30]
[356753287,1743115832878,-510.272977,0.00036,32]
[356753288,1743115832887,-300.0,0.00036167,7]
[356753289,1743115832896,-500.0,0.00036273,5]
[356753290,1743115832905,-500.0,0.00036273,5]
[356753291,1743115832914,-500.0,0.00036273,5]
[356753292,1743115832923,-500.0,0.00036273,5]
[356753293,1743115832932,-500.0,0.00036273,5]
[356753294,1743115832942,-500.0,0.00036273,5]
[356753295,1743115832951,-500.0,0.00036273,5]
[356753296,1743115832960,-500.0,0.00036273,5]
[356753297,1743115832969,-500.0,0.00036273,5]
[356753298,1743115832978,-4972.27056189,0.0003629,2]
[356753299,1743115832987,-500.0,0.0003629,15]
[356753300,1743115832997,-4972.27056189,0.0003629,2]
[356753301,1743115833006,-177.11501615,0.0003629,15]
[356753302,1743115833016,-4972.27056189,0.0003629,2]
[356753303,1743115833025,-4972.27056189,0.0003629,2]
[356753304,1743115833034,-4972.27056189,0.0003629,2]
[356753305,1743115833043,-4972.27056189,0.0003629,2]
[356753306,1743115833053,-4972.27056189,0.0003629,2]
[356753307,1743115833062,-4972.27056189,0.0003629,2]
[356753308,1743115833071,-4972.27056189,0.0003629,2]
[356753309,1743115833081,-4972.27056189,0.0003629,2]
[356753310,1743115833091,-4972.27056189,0.0003629,2]
[356753311,1743115833100,-4972.27056189,0.0003629,2]
[356753312,1743115833109,-4972.27056189,0.0003629,2]
[356753313,1743115833118,-4972.27056189,0.0003629,2]
[356753314,1743115833127,-4972.27056189,0.0003629,2]
[356753315,1743115833136,-4972.27056189,0.0003629,2]
[356753316,1743115833145,-4972.27056189,0.0003629,2]
[356753317,1743115833155,-4972.27056189,0.0003629,2]
[356753318,1743115833164,-4972.27056189,0.0003629,2]
[356753319,1743115833174,-4972.27056189,0.0003629,2]
[356753320,1743115833183,-4972.27056189,0.0003629,2]
[356753321,1743115833193,-4972.27056189,0.0003629,2]
[356753322,1743115833202,-4972.27056189,0.0003629,2]
[356753323,1743115833211,-4972.27056189,0.0003629,2]
[356753324,1743115833220,-4972.27056189,0.0003629,2]
[356753325,1743115833230,-4972.27056189,0.0003629,2]
[356753326,1743115833239,-4972.27056189,0.0003629,2]
[356753327,1743115833249,-4972.27056189,0.0003629,2]
[356753328,1743115833259,-4972.27056189,0.0003629,2]
[356753329,1743115833268,-4972.27056189,0.0003629,2]
[356753330,1743115833277,-4972.27056189,0.0003629,2]
[356753331,1743115833287,-4972.27056189,0.0003629,2]
[356753332,1743115833296,-4972.27056189,0.0003629,2]
[356753333,1743115833305,-4972.27056189,0.0003629,2]
[356753334,1743115833314,-4972.27056189,0.0003629,2]
[356753335,1743115833324,-4972.27056189,0.0003629,2]
[356753336,1743115833334,-4972.27056189,0.0003629,2]
[356753337,1743115833344,-4972.27056189,0.0003629,2]
[356753338,1743115833353,-4972.27056189,0.0003629,2]
[356753339,1743115833363,-4972.27056189,0.0003629,2]
[356753340,1743115833372,-4972.27056189,0.0003629,2]
[356753341,1743115833381,-4972.27056189,0.0003629,2]
[356753342,1743115833390,-4972.27056189,0.0003629,2]
[356753343,1743115833400,-4972.27056189,0.0003629,2]
[356753344,1743115833409,-4972.27056189,0.0003629,2]
[356753345,1743115833419,-4972.27056189,0.0003629,2]
[356753346,1743115833428,-4972.27056189,0.0003629,2]
[356753347,1743115833438,-4972.27056189,0.0003629,2]
[356753348,1743115833447,-4972.27056189,0.0003629,2]
[356753349,1743115833457,-4972.27056189,0.0003629,2]
[356753350,1743115833466,-4972.27056189,0.0003629,2]
[356753351,1743115833476,-4972.27056189,0.0003629,2]
[356753352,1743115833487,-7407.9906442,0.0003629,2]
[356753353,1743115833497,-186.05633659,0.0003629,15]
[356753354,1743115833507,-7407.9906442,0.0003629,2]
[356753355,1743115833678,-7407.9906442,0.0003629,2]
[356753356,1743115833697,-7407.9906442,0.0003629,2]
[356753357,1743115833711,-7407.9906442,0.0003629,2]
[356753358,1743115833720,-7407.9906442,0.0003629,2]
[356753359,1743115833731,-7407.9906442,0.0003629,2]
[356753360,1743115833741,-7407.9906442,0.0003629,2]
[356753361,1743115833751,-7407.9906442,0.0003629,2]
[356753362,1743115833760,-7407.9906442,0.0003629,2]
[356753363,1743115833770,-7407.9906442,0.0003629,2]
[356753364,1743115833781,-7407.9906442,0.0003629,2]
[356753365,1743115833791,-7407.9906442,0.0003629,2]
[356753366,1743115833802,-7407.9906442,0.0003629,2]
[356753367,1743115833812,-7407.9906442,0.0003629,2]
[356753368,1743115833822,-7407.9906442,0.0003629,2]
[356753369,1743115833832,-7407.9906442,0.0003629,2]
[356753370,1743115833842,-7407.9906442,0.0003629,2]
[356753371,1743115833852,-7407.9906442,0.0003629,2]
[356753372,1743115833862,-7407.9906442,0.0003629,2]
[356753373,1743115833871,-7407.9906442,0.0003629,2]
[356753374,1743115833881,-7407.9906442,0.0003629,2]
[356753375,1743115833890,-7407.9906442,0.0003629,2]
[356753376,1743115833900,-7407.9906442,0.0003629,2]
[356753377,1743115833909,-7407.9906442,0.0003629,2]
[356753378,1743115833919,-7407.9906442,0.0003629,2]
[356753379,1743115833928,-7407.9906442,0.0003629,2]
[356753380,1743115833938,-7407.9906442,0.0003629,2]
[356753381,1743115833947,-7407.9906442,0.0003629,2]
[356753382,1743115833957,-7407.9906442,0.0003629,2]
[356753383,1743115833966,-7407.9906442,0.0003629,2]
[356753384,1743115833976,-7407.9906442,0.0003629,2]
[356753385,1743115833986,-7407.9906442,0.0003629,2]
[356753386,1743115833996,-7407.9906442,0.0003629,2]
[356753387,1743115834005,-7407.9906442,0.0003629,2]
[356753388,1743115834015,-7407.9906442,0.0003629,2]
[356753389,1743115834024,-7407.9906442,0.0003629,2]
[356753390,1743115834034,-7407.9906442,0.0003629,2]
[356753391,1743115834043,-7407.9906442,0.0003629,2]
[356753392,1743115834053,-7407.9906442,0.0003629,2]
[356753393,1743115834062,-161.9425379,0.0003629,15]
[356753394,1743115834073,-187.87197361,0.0003629,15]
[356753395,1743115834082,-447.0,0.00036291,2]
[356753396,1743115834091,-447.0,0.00036291,2]
[356753397,1743115834101,-447.0,0.00036291,2]
[356753398,1743115834111,-447.0,0.00036291,2]
[356753399,1743115834120,-447.0,0.00036291,2]
[356753400,1743115834130,-447.0,0.00036291,2]
[356753401,1743115834139,-447.0,0.00036291,2]
[356753402,1743115834149,-447.0,0.00036291,2]
[356753403,1743115834158,-447.0,0.00036291,2]
[356753404,1743115834168,-447.0,0.00036291,2]
[356753405,1743115834178,-447.0,0.00036291,2]
[356753406,1743115834187,-447.0,0.00036291,2]
[356753407,1743115834196,-447.0,0.00036291,2]
[356753408,1743115834206,-447.0,0.00036291,2]
[356753409,1743115834216,-447.0,0.00036291,2]
[356753410,1743115834226,-447.0,0.00036291,2]
[356753411,1743115834235,-447.0,0.00036291,2]